bitfinex-derivatives/quotes_SOLF0:USTF0_20250630
["timestamp","ask_amount","ask_price","bid_price","bid_amount"]
[1751260946618,1.97791582,150.88,150.85,5.3018]
[1751260946918,6.43792373,150.87,150.85,5.3018]
[1751260947117,1.97791582,150.87,150.85,5.3018]
[1751260952021,1.97791582,150.88,150.85,5.3018]
[1751260952214,4.46066237,150.87,150.85,5.3018]
[1751260952419,1.97791582,150.88,150.85,5.3018]
[1751260952624,4.46066858,150.87,150.85,5.3018]
[1751260952924,1.97791582,150.88,150.85,5.3018]
[1751260953124,4.46066875,150.87,150.85,5.3018]
[1751260953327,1.97791582,150.88,150.85,5.3018]
[1751260953531,4.46073049,150.87,150.85,5.3018]
[1751260953726,1.97791582,150.88,150.85,5.3018]
[1751260954026,4.46073049,150.87,150.85,5.3018]
[1751260954326,1.97791582,150.88,150.85,5.3018]
[1751260954527,4.46080865,150.87,150.85,5.3018]
[1751260954726,1.97791582,150.88,150.85,5.3018]
[1751260954927,4.46080865,150.87,150.85,5.3018]
[1751260955226,1.97791582,150.88,150.85,5.3018]
[1751260955425,4.46090268,150.87,150.85,5.3018]
[1751260955625,1.97791582,150.88,150.85,5.3018]
[1751260955827,4.46090268,150.87,150.85,5.3018]
[1751260956028,1.97791582,150.88,150.85,5.3018]
[1751260956328,4.46099239,150.87,150.85,5.3018]
[1751260956626,1.97791582,150.88,150.85,5.3018]
[1751260956827,4.46101362,150.87,150.85,5.3018]
[1751260957018,1.97930637,150.88,150.85,5.3018]
[1751260957218,4.44970555,150.87,150.85,5.3018]
[1751260957525,1.97930637,150.88,150.85,5.3018]
[1751260957720,4.44983428,150.87,150.85,5.3018]
[1751260958024,1.97930637,150.88,150.85,5.3018]
[1751260958224,4.44983428,150.87,150.85,5.3018]
[1751260958425,1.97930637,150.88,150.85,5.3018]
[1751260958627,4.44998265,150.87,150.85,5.3018]
[1751260958823,1.97930637,150.88,150.85,5.3018]
[1751260959020,4.44998265,150.87,150.85,5.3018]
[1751260959324,1.97930637,150.88,150.85,5.3018]
[1751260959523,4.45015267,150.87,150.85,5.3018]
[1751260959724,1.97930637,150.88,150.84,8.43949605]
[1751260959922,4.45015266,150.87,150.85,6.20469605]
[1751260960125,1.97930637,150.88,150.85,11.50639605]
[1751260960328,4.45028466,150.87,150.85,11.50639605]
[1751260960527,1.9792241,150.88,150.85,11.50639605]
[1751260960727,4.45033117,150.87,150.85,11.50639605]
[1751260961030,1.9792241,150.88,150.85,11.50639605]
[1751260961229,6.42955527,150.87,150.85,11.50639605]
[1751260961426,1.9792241,150.87,150.85,11.50639605]
[1751260964231,1.9792241,150.88,150.85,11.50639605]
[1751260964426,4.45143847,150.87,150.85,11.50981312]
[1751260964625,1.9792241,150.88,150.85,11.50981312]
[1751260964827,4.45143847,150.87,150.85,11.50981312]
[1751260965126,1.9792241,150.88,150.85,11.50981312]
[1751260965328,4.45080015,150.87,150.85,11.50981312]
[1751260965522,1.9792241,150.88,150.85,11.50981312]
[1751260965727,4.45082557,150.87,150.85,11.50981312]
[1751260965928,1.9792241,150.88,150.85,11.50981312]
[1751260966123,4.45082557,150.87,150.85,11.50981312]
[1751260966324,1.9792241,150.88,150.85,11.50981312]
[1751260966532,4.45085045,150.87,150.85,11.50981312]
[1751260966734,1.9792241,150.88,150.85,11.50981312]
[1751260967029,4.45091595,150.87,150.85,11.50981312]
[1751260967229,1.9792241,150.88,150.85,11.50981312]
[1751260967431,4.46232421,150.87,150.85,11.50981312]
[1751260967730,1.9792241,150.88,150.85,11.50981312]
[1751260967929,4.46232421,150.87,150.85,11.50981312]
[1751260968126,1.9792241,150.88,150.85,11.50981312]
[1751260968331,4.4623258,150.87,150.85,11.50981312]
[1751260968630,1.9792241,150.88,150.85,11.50981312]
[1751260968830,4.46242901,150.87,150.85,11.50981312]
[1751260969031,1.9792241,150.88,150.85,11.50981312]
[1751260969230,4.46242901,150.87,150.85,11.50981312]
[1751260969438,1.9792241,150.88,150.85,11.50981312]
[1751260969636,4.46253883,150.87,150.85,11.50981312]
[1751260969838,1.9792241,150.88,150.85,11.50981312]
[1751260970135,4.46253883,150.87,150.85,11.50981312]
[1751260970435,1.9792241,150.88,150.85,11.50981312]
[1751260970632,4.46265454,150.87,150.85,11.50981312]
[1751260970832,1.9792241,150.88,150.85,11.50981312]
[1751260971033,4.46265454,150.87,150.85,11.50981312]
[1751260971234,1.9792241,150.88,150.85,11.50981312]
[1751260971433,4.46277694,150.87,150.85,11.50981312]
[1751260971634,1.9792241,150.88,150.85,11.50981312]
[1751260971832,4.46277694,150.87,150.85,11.50981312]
[1751260972039,1.9792241,150.88,150.85,11.50981312]
[1751260972235,4.46277694,150.87,150.85,11.50981312]
[1751260972435,1.9792241,150.88,150.85,11.50981312]
[1751260972740,4.46290892,150.87,150.85,11.50981312]
[1751260972936,1.9792241,150.88,150.85,11.50981312]
[1751260973135,4.46290892,150.87,150.85,11.50981312]
[1751260973335,1.9792241,150.88,150.85,11.50981312]
[1751260973534,4.46305232,150.87,150.85,11.50981312]
[1751260973733,211.0,150.89,150.85,8.18733722]
[1751260973936,4.4630523,150.88,150.85,8.18733722]
[1751260974236,4.4630523,150.87,150.85,6.20811312]
[1751260974439,1.9792241,150.88,150.85,11.50971312]
[1751260974736,4.45628899,150.87,150.85,11.50971312]
[1751260974941,1.9792241,150.88,150.85,11.50971312]
[1751260975138,4.45628899,150.87,150.85,11.50971312]
[1751260975438,1.9792241,150.88,150.85,11.50971312]
[1751260975739,4.45621534,150.87,150.85,11.50971312]
[1751260976035,1.9792241,150.88,150.85,11.50971312]
[1751260976237,4.45621534,150.87,150.85,11.50971312]
[1751260976431,1.9792241,150.88,150.85,11.50971312]
[1751260976626,4.45601148,150.87,150.85,11.50971312]
[1751260976830,1.9792241,150.88,150.85,11.50971312]
[1751260977039,4.45601148,150.87,150.85,11.50971312]
[1751260977333,1.9792241,150.88,150.85,11.50971312]
[1751260977636,4.45583669,150.87,150.85,11.50971312]
[1751260977834,1.9792241,150.88,150.85,11.50971312]
[1751260978038,4.45583223,150.87,150.85,11.50971312]
[1751260978232,1.9792241,150.87,150.85,6.20811312]
[1751260979238,1.9792241,150.87,150.85,11.51001312]
[1751260980239,5.3009,150.88,150.85,6.20811312]
[1751260980434,6.43453754,150.87,150.85,6.20811312]
[1751260980636,1.9792241,150.87,150.85,6.20811312]
[1751260981641,1.9792241,150.87,150.85,11.51001312]
[1751260984239,216.3006,150.89,150.85,11.51001312]
[1751260984440,1.9792241,150.87,150.85,11.51001312]
[1751260988746,1.9792241,150.88,150.85,11.51001312]
[1751260988935,4.44320801,150.87,150.85,11.51001312]
[1751260989134,1.9792241,150.88,150.85,11.51001312]
[1751260989339,4.44320801,150.87,150.85,11.51001312]
[1751260989641,1.9792241,150.88,150.85,11.51001312]
[1751260989839,4.44316692,150.87,150.85,11.51001312]
[1751260990043,1.9792241,150.88,150.85,11.51001312]
[1751260990244,4.44316692,150.87,150.85,11.51001312]
[1751260990536,1.9792241,150.88,150.85,11.51001312]
[1751260990740,4.44313732,150.87,150.85,11.51001312]
[1751260990944,1.9792241,150.88,150.85,11.51001312]
[1751260991139,4.44313732,150.87,150.85,11.51001312]
[1751260991339,1.9792241,150.88,150.85,11.51001312]
[1751260991542,4.44311889,150.87,150.85,11.51001312]
[1751260991736,1.9792241,150.88,150.85,11.51001312]
[1751260991941,4.44311889,150.87,150.85,11.51001312]
[1751260992140,1.9792241,150.88,150.85,11.51001312]
[1751260992343,4.44313845,150.87,150.85,11.51001312]
[1751260992543,1.9792241,150.88,150.85,11.51001312]
[1751260992745,4.44311399,150.87,150.85,11.51001312]
[1751260993042,1.9792241,150.88,150.85,11.51001312]
[1751260993245,4.44311399,150.87,150.85,11.51001312]
[1751260993443,1.9792241,150.88,150.85,11.51001312]
[1751260993645,4.44311755,150.87,150.85,11.51001312]
[1751260993946,1.9792241,150.88,150.85,11.51001312]
[1751260994146,4.44311755,150.87,150.85,11.51001312]
[1751260994338,1.9792241,150.88,150.85,11.51001312]
[1751260994539,4.44313223,150.87,150.85,6.20811312]
[1751260994739,7.2801241,150.88,150.85,6.20811312]
[1751260994945,6.42235475,150.87,150.85,6.20811312]
[1751260995245,1.9792241,150.87,150.85,6.20811312]
[1751261001851,7.28031723,150.88,150.85,6.20811312]
[1751261002949,7.28031723,150.88,150.85,11.51001312]
[1751261003850,1.97941723,150.88,150.86,5.3016]
[1751261004045,212.97941723,150.89,150.86,5.3016]
[1751261004349,1.97941723,150.88,150.86,5.3016]
[1751261004744,1.97941723,150.88,150.85,11.50991312]
[1751261004940,1.97930038,150.88,150.85,11.50991312]
[1751261008751,4.45470257,150.87,150.85,11.50991312]
[1751261008953,1.97930038,150.88,150.85,11.50991312]
[1751261009152,4.45470257,150.87,150.85,11.50991312]
[1751261009352,1.97930038,150.88,150.85,11.50991312]
[1751261009554,4.46180821,150.87,150.85,11.50991312]
[1751261009747,211.0,150.89,150.85,11.50991312]
[1751261009950,6.44110859,150.88,150.85,11.50991312]
[1751261010143,4.46180821,150.87,150.85,11.50991312]
[1751261010352,1.97930038,150.88,150.85,11.50991312]
[1751261010548,4.46184153,150.87,150.85,11.50991312]
[1751261010748,1.97930038,150.88,150.85,11.50991312]
[1751261010944,4.46184153,150.87,150.85,11.50991312]
[1751261011152,1.97930038,150.88,150.85,11.50991312]
[1751261011447,4.46186639,150.87,150.85,11.50991312]
[1751261011651,1.97930038,150.88,150.85,11.50991312]
[1751261011856,4.46187839,150.87,150.86,5.3016]
[1751261012151,211.0,150.89,150.86,13.4890135]
[1751261012356,212.97930038,150.89,150.86,11.50971312]
[1751261012654,4.4612265,150.88,150.86,11.50971312]
[1751261012857,212.97930038,150.89,150.87,6.20811312]
[1751261013051,4.47253518,150.88,150.87,6.20811312]
[1751261013246,4.47253518,150.88,150.86,11.50971312]
[1751261013445,211.0,150.89,150.86,11.50971312]
[1751261013643,4.47227264,150.88,150.86,11.50971312]
[1751261013854,212.97930038,150.89,150.86,11.50971312]
[1751261014055,4.47227264,150.88,150.86,11.50971312]
[1751261014354,212.97930038,150.89,150.86,11.50971312]
[1751261014554,4.47205481,150.88,150.86,11.50971312]
[1751261014853,212.97930038,150.89,150.86,11.50971312]
[1751261015152,4.47205471,150.88,150.86,11.50971312]
[1751261015356,212.97930038,150.89,150.86,11.50971312]
[1751261015546,4.47187277,150.88,150.86,11.50971312]
[1751261015847,212.97930038,150.89,150.86,11.50971312]
[1751261016051,4.47187277,150.88,150.86,11.50971312]
[1751261016252,212.97930038,150.89,150.86,11.50971312]
[1751261016453,4.47172219,150.88,150.86,11.50971312]
[1751261016654,212.97930038,150.89,150.86,11.50971312]
[1751261016856,4.47172219,150.88,150.86,11.50971312]
[1751261017155,212.97930038,150.89,150.86,11.50971312]
[1751261017355,4.47172219,150.88,150.86,11.50971312]
[1751261017654,212.97930038,150.89,150.86,11.50971312]
[1751261017854,4.47159939,150.88,150.86,11.50971312]
[1751261018052,212.97930038,150.89,150.86,11.50971312]
[1751261018253,4.47159939,150.88,150.86,11.50971312]
[1751261018450,212.97930038,150.89,150.86,11.50971312]
[1751261018756,4.47150183,150.88,150.86,11.50971312]
[1751261018952,212.97930038,150.89,150.86,11.50971312]
[1751261019151,4.48280625,150.88,150.86,11.50971312]
[1751261019354,212.97930038,150.89,150.86,11.50971312]
[1751261019555,4.48264884,150.88,150.86,11.50971312]
[1751261019757,212.97930038,150.89,150.86,11.50971312]
[1751261019952,4.48242576,150.88,150.86,11.50971312]
[1751261020153,212.97930038,150.89,150.86,11.50971312]
[1751261020353,4.48242576,150.88,150.86,11.50971312]
[1751261020655,1.97930038,150.87,150.86,6.20811312]
[1751261021055,1.97930038,150.87,150.85,6.20811312]
[1751261022657,1.97930038,150.87,150.85,11.51001312]
[1751261025458,7.28020038,150.88,150.85,11.51001312]
[1751261025656,4.47119978,150.87,150.85,11.51001312]
[1751261025856,7.28020038,150.88,150.85,11.51001312]
[1751261026056,4.47119978,150.87,150.85,11.51001312]
[1751261026258,7.28020038,150.88,150.85,11.51001312]
[1751261026451,4.47123774,150.87,150.85,6.20811312]
[1751261026650,7.28020038,150.88,150.85,6.20811312]
[1751261026852,4.47127208,150.87,150.85,6.20811312]
[1751261027060,7.28020038,150.88,150.85,6.20811312]
[1751261027257,4.45996721,150.87,150.85,6.20811312]
[1751261027450,7.28020038,150.88,150.85,6.20811312]
[1751261027652,4.46004198,150.87,150.85,6.20811312]
[1751261027854,7.28020038,150.88,150.85,6.20811312]
[1751261028055,4.46004198,150.87,150.85,6.20811312]
[1751261028255,7.28020038,150.88,150.85,6.20811312]
[1751261028452,6.43942012,150.87,150.85,6.20811312]
[1751261028653,1.97930038,150.87,150.85,6.20811312]
[1751261031857,1.97930038,150.86,150.85,6.20811312]
[1751261032058,6.42850027,150.86,150.85,6.20811312]
[1751261032263,6.42850027,150.86,150.84,6.20811312]
[1751261032560,1.97930038,150.86,150.84,6.20811312]
[1751261032953,1.97930038,150.86,150.84,11.51041312]
[1751261035262,1.97930038,150.87,150.84,11.51041312]
[1751261035464,4.44733245,150.86,150.84,11.51041312]
[1751261035762,1.97930038,150.87,150.84,11.51041312]
[1751261035952,4.44704836,150.86,150.84,11.51041312]
[1751261036154,1.97930038,150.87,150.84,11.51041312]
[1751261036358,4.44704836,150.86,150.84,11.51041312]
[1751261036553,1.97930038,150.87,150.84,11.51041312]
[1751261036756,4.44673749,150.86,150.84,11.51041312]
[1751261036963,1.97930038,150.87,150.84,11.51041312]
[1751261037263,4.44673749,150.86,150.84,11.51041312]
[1751261038760,6.42603787,150.86,150.84,11.51041312]
[1751261038958,6.42603787,150.86,150.84,6.20811312]
[1751261039166,1.97930038,150.85,150.83,6.20811312]
[1751261039360,1.97930038,150.86,150.83,6.20811312]
[1751261039754,6.36748653,150.86,150.83,6.20811312]
[1751261039959,1.97930038,150.86,150.83,6.20811312]
[1751261040154,6.36748653,150.86,150.84,5.3022]
[1751261040364,6.36748653,150.87,150.84,5.3022]
[1751261040566,6.36748653,150.87,150.84,7.28150038]
[1751261041068,6.36748653,150.87,150.84,13.4896135]
[1751261041267,6.36748653,150.87,150.84,11.51031312]
[1751261044675,6.36748653,150.87,150.84,5.3022]
[1751261045069,11.66878653,150.87,150.83,11.51061312]
[1751261045269,6.36748653,150.86,150.83,11.51061312]
[1751261045471,1.97930038,150.86,150.83,11.51061312]
[1751261046072,1.97930038,150.86,150.84,5.3022]
[1751261047280,1.97930038,150.85,150.82,10.70128888]
[1751261047472,1.97930038,150.84,150.82,10.70128888]
[1751261047677,1.97930038,150.85,150.82,10.70128888]
[1751261050072,1.97930038,150.85,150.82,16.00408888]
[1751261051081,1.97930038,150.83,150.82,10.70128888]
[1751261051277,1.97930038,150.83,150.82,4.49317576]
[1751261055882,134.48190038,150.83,150.82,4.49317576]
[1751261056072,134.48190038,150.83,150.82,0.90357576]
[1751261065383,1.97930038,150.79,150.77,5.3046]
[1751261065782,1.97930038,150.78,150.72,8.77120038]
[1751261065982,1.97930038,150.75,150.72,6.7919]
[1751261066481,5.3048,150.77,150.72,6.7919]
[1751261066682,5.3045,150.78,150.72,6.7919]
[1751261066885,1.97930038,150.77,150.73,1.97930038]
[1751261067180,1.97930038,150.77,150.72,8.77120038]
[1751261067988,1.97930038,150.76,150.73,5.306]
[1751261068287,1.97930038,150.76,150.72,8.77120038]
[1751261068591,1.97930038,150.75,150.72,6.7919]
[1751261069187,1.97930038,150.76,150.72,8.77120038]
[1751261069787,5.3044,150.78,150.73,5.3058]
[1751261069991,243.56,150.82,150.74,1.97930038]
[1751261070194,1.97930038,150.78,150.74,1.97930038]
[1751261070388,5.3038,150.8,150.76,5.3051]
[1751261070592,1.97930038,150.78,150.76,5.3051]
[1751261071091,1.97930038,150.79,150.76,5.3051]
[1751261071989,1.97930038,150.8,150.76,1.97930038]
[1751261072186,1.97930038,150.8,150.77,2.2797]
[1751261073093,1.97930038,150.8,150.77,7.5842]
[1751261073593,212.97930038,150.81,150.77,4.25900038]
[1751261074591,212.97930038,150.81,150.78,5.3043]
[1751261074791,1.97930038,150.81,150.78,5.3043]
[1751261075297,1.97930038,150.8,150.78,5.3043]
[1751261076996,1.97930038,150.8,150.77,7.5843]
[1751261077397,1.97930038,150.81,150.77,7.5843]
[1751261080200,1.97930038,150.8,150.77,7.5843]
[1751261085006,1.97930038,150.8,150.78,5.3044]
[1751261085304,7.28240038,150.82,150.78,5.3044]
[1751261085698,1.97930038,150.81,150.78,5.3044]
[1751261087600,5.3031,150.82,150.78,5.3044]
[1751261087804,5.3028,150.83,150.78,5.3044]
[1751261088003,1.97930038,150.81,150.78,5.3044]
[1751261091815,5.3028,150.83,150.79,5.304]
[1751261092110,1.97930038,150.81,150.79,5.304]
[1751261092515,1.97930038,150.81,150.78,5.3043]
[1751261098020,216.3024,150.84,150.8,5.3036]
[1751261098215,216.3024,150.84,150.78,8.1874135]
[1751261098216,211.0,150.84,150.78,8.1874135]
[1751261098719,1.97930038,150.82,150.78,8.1874135]
[1751261099121,1.97930038,150.82,150.79,5.3038]
[1751261109828,5.3028,150.83,150.79,5.3038]
[1751261110024,1.97930038,150.82,150.79,5.3038]
[1751261110328,1.97930038,150.83,150.79,5.3038]
[1751261110524,1.97930038,150.83,150.8,5.3037]
[1751261111534,345.42180038,150.84,150.8,7.28300038]
[1751261111831,1.97930038,150.83,150.8,7.28300038]
[1751261112034,1.97930038,150.83,150.8,5.3037]
[1751261112629,216.3025,150.84,150.8,5.3037]
[1751261112835,1.97930038,150.83,150.8,5.3037]
[1751261113023,211.0,150.84,150.8,7.28300038]
[1751261113239,212.97930038,150.86,150.82,1.97930038]
[1751261114128,212.97930038,150.86,150.82,7.28200038]
[1751261114837,218.28090038,150.86,150.82,7.28200038]
[1751261115135,211.0,150.86,150.84,1.97930038]
[1751261115533,1.97930038,150.89,150.85,1.97930038]
[1751261115738,1.97930038,150.89,150.85,7.28100038]
[1751261116836,7.27980038,150.89,150.85,7.28100038]
[1751261117336,7.27980038,150.89,150.85,1.97930038]
[1751261117536,1.97930038,150.88,150.84,7.28150038]
[1751261118040,216.3003,150.9,150.85,7.28110038]
[1751261118340,1.97930038,150.89,150.85,7.28110038]
[1751261119535,1.97930038,150.89,150.83,8.58831312]
[1751261119536,218.27960038,150.9,150.86,7.28090038]
[1751261122244,218.27960038,150.9,150.86,39.82090038]
[1751261123945,1.97930038,150.89,150.86,39.82090038]
[1751261124247,1.97930038,150.89,150.86,32.54]
[1751261127744,1.97930038,150.89,150.86,37.8415]
[1751261130254,5.3006,150.89,150.86,37.8415]
[1751261130546,1.97930038,150.88,150.86,37.8415]
[1751261131450,1.97930038,150.87,150.83,34.8802]
[1751261131652,1.97930038,150.86,150.83,36.85950038]
[1751261132056,1.97930038,150.86,150.83,42.16200038]
[1751261132350,1.97930038,150.86,150.83,40.1827]
[1751261137058,7.28090038,150.86,150.83,40.1827]
[1751261137752,5.3022,150.85,150.83,34.8802]
[1751261137957,7.28150038,150.85,150.83,34.8802]
[1751261138156,1.97930038,150.84,150.8,32.5]
[1751261138458,1.97930038,150.81,150.77,46.40470038]
[1751261139251,1.97930038,150.81,150.78,7.28370038]
[1751261141161,1.97930038,150.81,150.78,5.3044]
[1751261141361,7.28280038,150.81,150.77,46.40490038]
[1751261141564,1.97930038,150.8,150.77,41.10020038]
[1751261142363,1.97930038,150.8,150.77,46.40480038]
[1751261142762,7.28290038,150.81,150.77,46.40480038]
[1751261143663,7.28290038,150.81,150.77,44.4255]
[1751261144061,7.28290038,150.81,150.77,46.40480038]
[1751261152066,1.97930038,150.81,150.77,46.40480038]
[1751261153666,5.3031,150.82,150.77,46.40480038]
[1751261153969,5.3031,150.82,150.78,7.28370038]
[1751261153970,1.97930038,150.81,150.78,7.28370038]
[1751261154766,1.97930038,150.81,150.78,5.3044]
[1751261154966,1.97930038,150.81,150.78,1.97930038]
[1751261155969,7.28270038,150.81,150.78,1.97930038]
[1751261156169,7.28270038,150.81,150.77,46.40480038]
[1751261158668,1.97930038,150.81,150.77,46.40480038]
[1751261158867,1.97930038,150.81,150.78,1.97930038]
[1751261159870,5.3032,150.82,150.78,7.28350038]
[1751261160070,7.28250038,150.82,150.78,7.28350038]
[1751261161669,1.97930038,150.81,150.78,7.28350038]
[1751261161870,1.97930038,150.81,150.78,5.3042]
[1751261162570,1.97930038,150.81,150.78,7.28350038]
[1751261163666,211.0,150.83,150.79,5.3041]
[1751261163872,212.97930038,150.83,150.79,7.28340038]
[1751261164574,218.28200038,150.83,150.79,7.28340038]
[1751261167775,216.3027,150.83,150.79,7.28340038]
[1751261167971,218.28200038,150.83,150.79,7.28340038]
[1751261170580,212.97930038,150.83,150.79,7.28340038]
[1751261170978,340.03930038,150.83,150.79,7.28340038]
[1751261171779,340.03930038,150.83,150.8,5.3037]
[1751261173581,338.06,150.83,150.8,5.3037]
[1751261173884,211.0,150.83,150.81,7.53113953]
[1751261174074,127.06,150.84,150.81,7.53113953]
[1751261174884,127.06,150.84,150.81,5.3032]
[1751261175086,7.53003953,150.85,150.81,5.3032]
[1751261175392,127.06,150.84,150.81,5.3032]
[1751261177191,129.28793953,150.84,150.81,5.3032]
[1751261179193,2.22793953,150.84,150.81,5.3032]
[1751261180092,2.22775528,150.84,150.81,5.3032]
[1751261182188,132.3421,150.85,150.8,8.4358684]
[1751261182189,127.04,150.85,150.8,8.4358684]
[1751261182392,2.22775528,150.85,150.81,8.4358684]
[1751261182589,2.22775528,150.85,150.81,40.9358684]
[1751261183585,2.22775528,150.85,150.82,5.3027]
[1751261194896,2.22775528,150.83,150.8,11.51151312]
[1751261195103,2.22775528,150.83,150.79,6.20811312]
[1751261195104,2.22775528,150.82,150.79,6.20811312]
[1751261195293,2.22775528,150.81,150.78,38.66811312]
[1751261195693,2.22775528,150.81,150.79,5.3041]
[1751261196399,2.22775528,150.81,150.79,11.51221312]
[1751261196596,2.22775528,150.82,150.79,11.51221312]
[1751261203608,2.22775528,150.8,150.79,6.20811312]
[1751261203802,2.22775528,150.8,150.78,32.46]
[1751261204504,2.22775528,150.81,150.78,37.7642]
[1751261205206,2.22775528,150.81,150.78,39.99195528]
[1751261209106,2.22775528,150.81,150.78,37.7642]
[1751261216417,2.22775528,150.81,150.78,32.46]
[1751261217513,2.22775528,150.81,150.78,37.7642]
[1751261220614,2.22775528,150.81,150.78,39.99195528]
[1751261220913,127.02,150.83,150.8,2.22775528]
[1751261221420,127.02,150.83,150.81,5.3033]
[1751261221631,129.24775528,150.83,150.79,8.4358684]
[1751261222321,2.22775528,150.83,150.79,8.4358684]
[1751261222521,2.22775528,150.83,150.8,5.3036]
[1751261234030,345.51025528,150.84,150.8,5.3036]
[1751261235737,345.51025528,150.84,150.8,7.53135528]
[1751261235934,345.51025528,150.84,150.8,2.22775528]
[1751261236136,345.51025528,150.84,150.79,13.7397684]
[1751261236930,340.20775528,150.84,150.79,13.7397684]
[1751261237134,5.3027,150.83,150.79,13.7397684]
[1751261237535,345.51015528,150.84,150.79,13.7397684]
[1751261241439,345.51015528,150.84,150.8,5.3036]
[1751261243135,337.98,150.84,150.8,7.53135528]
[1751261243334,340.20775528,150.84,150.81,5.3033]
[1751261243840,340.18775528,150.84,150.81,5.3033]
[1751261244137,337.96,150.84,150.81,5.3033]
[1751261245834,340.18775528,150.84,150.81,5.3033]
[1751261246240,213.22775528,150.84,150.81,5.3033]
[1751261246437,340.18775528,150.84,150.81,5.3033]
[1751261250546,129.18775528,150.84,150.81,5.3033]
[1751261250944,126.96,150.84,150.81,5.3033]
[1751261253546,126.96,150.84,150.81,7.53105528]
[1751261253846,126.96,150.84,150.81,5.3033]
[1751261254144,126.94,150.84,150.81,5.3033]
[1751261264252,126.94,150.84,150.81,11.51141312]
[1751261266958,126.94,150.84,150.82,5.3029]
[1751261273360,126.94,150.84,150.81,11.51131312]
[1751261277164,7.52983865,150.85,150.81,11.51131312]
[1751261278566,7.52983865,150.85,150.81,13.73905177]
[1751261279869,7.52983865,150.85,150.82,5.303]
[1751261280869,2.22766478,150.85,150.82,5.303]
[1751261288573,2.22762424,150.85,150.82,5.303]
[1751261288769,7.52962424,150.85,150.81,13.73893736]
[1751261290972,5.3024,150.84,150.81,13.73893736]
[1751261292273,5.3024,150.84,150.81,11.51131312]
[1751261297370,5.3029,150.83,150.81,6.20811312]
[1751261297679,7.53111287,150.83,150.8,38.62811312]
[1751261299579,7.53111287,150.83,150.8,43.93181312]
[1751261299874,5.303,150.82,150.8,38.62811312]
[1751261300177,7.53121287,150.82,150.8,32.42]
[1751261300577,7.53121287,150.82,150.79,11.51211312]
[1751261301080,7.53121287,150.82,150.79,13.74032599]
[1751261301678,2.22821287,150.82,150.79,13.74032599]
[1751261301879,2.22821287,150.82,150.79,11.51211312]
[1751261303079,2.22821287,150.82,150.8,5.3037]
[1751261303476,2.22821287,150.82,150.79,6.20811312]
[1751261303684,2.22821287,150.8,150.78,11.51241312]
[1751261303876,2.22821287,150.8,150.78,6.20811312]
[1751261304277,2.22821287,150.8,150.77,39.93271287]
[1751261304278,2.22821287,150.79,150.77,6.20811312]
[1751261304476,2.22821287,150.79,150.76,6.20811312]
[1751261304785,7.53251287,150.79,150.76,11.51301312]
[1751261305178,2.22821287,150.79,150.76,11.51301312]
[1751261305879,2.22821287,150.77,150.75,11.51341312]
[1751261306079,2.22821287,150.77,150.75,5.3053]
[1751261306682,2.22821287,150.78,150.75,5.3053]
[1751261309686,2.22821287,150.77,150.75,5.3053]
[1751261310283,2.22821287,150.78,150.75,5.3053]
[1751261313088,7.53261287,150.78,150.75,5.3053]
[1751261313785,2.22821287,150.77,150.74,37.7056]
[1751261313985,7.53301287,150.77,150.73,8.43632599]
[1751261314192,2.22821287,150.76,150.72,8.43632599]
[1751261314788,2.22821287,150.76,150.73,7.53411287]
[1751261314986,7.53301287,150.77,150.73,7.53411287]
[1751261316291,7.53301287,150.77,150.73,5.3059]
[1751261316491,7.53301287,150.77,150.73,7.53411287]
[1751261316686,7.53371287,150.75,150.72,11.51451312]
[1751261316892,2.22821287,150.74,150.7,2.22821287]
[1751261317089,2.22821287,150.74,150.69,8.47941312]
[1751261317090,2.22821287,150.75,150.72,2.22821287]
[1751261317288,5.3053,150.76,150.73,2.22821287]
[1751261317688,2.22821287,150.75,150.69,2.2713]
[1751261317991,7.53401287,150.74,150.7,2.22821287]
[1751261318496,7.53401287,150.74,150.69,36.89951287]
[1751261319397,2.22821287,150.74,150.7,7.53531287]
[1751261320600,2.22821287,150.74,150.7,5.3071]
[1751261320897,7.53401287,150.74,150.7,5.3071]
[1751261321200,2.22821287,150.73,150.69,37.7075]
[1751261321500,2.22821287,150.72,150.69,5.3075]
[1751261322096,2.22821287,150.73,150.69,7.53571287]
[1751261322399,2.22821287,150.73,150.7,5.3072]
[1751261324102,5.3059,150.74,150.7,5.3072]
[1751261324299,2.22821287,150.72,150.7,5.3072]
[1751261326306,2.22821287,150.73,150.7,5.3072]
[1751261327808,2.22821287,150.72,150.69,5.3074]
[1751261328112,2.22821287,150.73,150.68,4.43381287]
[1751261328404,2.22821287,150.72,150.69,5.3074]
[1751261329116,5.3059,150.74,150.7,5.3072]
[1751261329403,2.22821287,150.73,150.7,5.3072]
[1751261329909,2.22821287,150.73,150.69,7.53561287]
[1751261330303,2.22821287,150.7,150.65,4.651]
[1751261330503,2.22821287,150.68,150.65,2.2926]